[Event "World Junior U20 Open 2018"]
[Site "Gebze"]
[Date "2018.09.10"]
[Round "6.39"]
[White "Shailesh, Dravid"]
[Black "Garayev, Kanan"]
[Result "0-1"]
[ECO "C84"]
[WhiteElo "2325"]
[BlackElo "2404"]
[Annotator "NA"]
[PlyCount "80"]
[EventDate "2018.09.05"]
[EventType "swiss"]
[EventCountry "TUR"]
[SourceTitle "playchess.com"]
[Source "ChessBase"]
[SourceQuality "1"]
[TimeControl "40/5400+30:1800+30"]

1. e4 {[%emt 0:00:30]} e5 {[%emt 0:01:30]} 2. Nf3 {[%emt 0:00:30]} Nc6 {[%emt 0:00:00]} 3. Bb5 {[%emt 0:00:30]} a6 {[%emt 0:00:00]} 4. Ba4 {[%emt 0:00:00]} b5 {[%emt 0:00:30]} 5. Bb3 {[%emt 0:00:00]} Na5 {[%emt 0:00:30]} 6. Nc3 {[%emt 0:05:30]} d6 {[%emt 0:00:00]} 7. O-O {[%emt 0:00:30]} Nf6 {[%emt 0:01:30]} 8. d3 {[%emt 0:01:30]} Be7 {[%emt 0:04:30]} 9. h3 {[%emt 0:07:30]} O-O {[%emt 0:05:30] LiveBook: 21 Partien} 10. Bg5 {[%emt 0:01:30] C84: Closed Ruy Lopez: Unusual White 6th moves} (10. Be3 Bb7 11. Re1 Nxb3 12. axb3 Nd7 13. d4 Bf6 14. Qd2 exd4 15. Bxd4 Re8 16. Nd5 Ne5 17. Nxf6+ Qxf6 18. Bxe5 dxe5 {½-½ (68) Bartel,M (2623)-Sargissian,G (2679) Baku 2015}) 10... c5 {[%emt 0:00:30]} 11. a4 $146 {[%emt 0:00:30]} ({Predecessor:} 11. Bxf6 Bxf6 12. Bd5 Rb8 13. Qd2 Be6 14. Rfe1 b4 15. Ne2 Bxd5 16. exd5 e4 17. dxe4 Bxb2 {0-1 (34) Figueiredo,J (1173)-Goncalves,G (1535) Luso 2017}) 11... Nxb3 {[%emt 0:09:30]} 12. cxb3 {[%emt 0:00:30]} b4 {[%emt 0:00:30]} 13. Bxf6 {[%emt 0:01:00]} Bxf6 {[%emt 0:00:30]} 14. Nd5 {[%emt 0:00:30]} Bg5 {[%emt 0:04:30]} 15. Nd2 {[%emt 0:08:00]} Bxd2 {[%emt 0:02:30]} 16. Qxd2 {[%emt 0:00:30]} Be6 {[%emt 0:01:30]} 17. f4 {[%emt 0:01:30]} f5 {[%emt 0:06:30]} 18. Rac1 {[%emt 0:02:30]} Bxd5 {[%emt 0:01:30]} 19. exd5 {[%emt 0:00:30]} Qf6 {[%emt 0:00:30]} 20. Qf2 {[%emt 0:10:30]} (20. fxe5 $11 {bleibt in der Remisbreite.} Qxe5 21. d4 Qxd5 22. Rc4) 20... Rae8 {[%emt 0:06:30]} 21. Rc4 {[%emt 0:03:30]} e4 {[%emt 0:06:30]} 22. dxe4 {[%emt 0:06:30]} Rxe4 {[%emt 0:01:30]} 23. Rxe4 {[%emt 0:10:30]} fxe4 $17 {[%emt 0:00:00]} 24. Qe2 {[%emt 1:14:00]} (24. a5 $17) 24... Qd4+ {[%emt 1:17:00]} 25. Kh2 {[%emt 0:00:30]} Qd3 {[%emt 0:00:30]} 26. Qxd3 {[%emt 0:00:30]} exd3 {[%emt 0:00:30]} 27. Rd1 {[%emt 0:00:30]} Rxf4 {[%emt 0:00:30]} 28. Rxd3 {[%emt 0:00:30]} Rf2 {[%emt 0:00:30]} 29. Re3 {[%emt 0:00:30]} Kf7 {[%emt 0:00:30]} 30. Re6 {[%emt 0:00:30]} Rf6 {[%emt 0:00:30]} 31. Re3 {[%emt 0:00:30]} Rf5 {[%emt 0:00:30]} 32. Rd3 {[%emt 0:00:30]} Rf2 {[%emt 0:00:30]} 33. Re3 {[%emt 0:00:30]} Rxb2 {[%emt 0:00:30]} 34. Re6 {[%emt 0:00:30]} Rxb3 {[%emt 0:00:30]} 35. Rxd6 {[%emt 0:00:30]} c4 {[%emt 0:00:00]} 36. Rxa6 {[%emt 0:03:30]} c3 {[%emt 0:00:00]} 37. Ra7+ {[%emt 0:00:30]} Ke8 {[%emt 0:00:00]} 38. Rc7 {[%emt 0:00:30]} Ra3 {[%emt 0:01:00]} 39. Rc4 {[%emt 0:00:30]} Rxa4 {[%emt 0:01:30]} 40. Kg3 {[%emt 0:00:00]} Ra1 {[%emt 0:00:00]} 0-1

[Event "World Junior U20 Open 2018"]
[Site "Gebze"]
[Date "2018.09.10"]
[Round "6.40"]
[White "Agibileg, Uurtsaikh"]
[Black "Huber, Martin Christian"]
[Result "1-0"]
[ECO "E94"]
[WhiteElo "2321"]
[BlackElo "2390"]
[Annotator "ChessBase"]
[PlyCount "73"]
[EventDate "2018.09.05"]
[EventType "swiss"]
[EventCountry "TUR"]
[SourceTitle "playchess.com"]
[Source "ChessBase"]
[SourceQuality "1"]
[TimeControl "40/5400+30:1800+30"]

1. d4 Nf6 2. c4 g6 3. Nc3 Bg7 4. e4 d6 5. Be2 O-O 6. Nf3 Na6 7. O-O e5 8. Be3 c6 9. d5 Ng4 10. Bg5 f6 11. Bh4 c5 12. Ne1 Nh6 13. f3 Nf7 14. Rb1 Bh6 15. Bf2 f5 16. Nd3 Bg5 17. b4 b6 18. bxc5 Nxc5 19. a4 Nb7 20. Nb4 Bd7 21. Nc6 Qc8 22. exf5 {[%emt 1:17:00]} gxf5 {[%emt 1:05:00]} 23. f4 {[%emt 0:00:30]} Bf6 {[%emt 0:00:30]} 24. Bf3 {[%emt 0:00:30]} Nc5 {[%emt 0:07:30]} 25. a5 {[%emt 0:04:30]} e4 {[%emt 0:03:30]} 26. Bd4 {[%emt 0:01:28]} Bxd4+ {[%emt 0:01:30]} 27. Nxd4 {[%emt 0:06:31]} exf3 {[%emt 0:05:30]} 28. Rxf3 {[%emt 0:00:30]} Qd8 {[%emt 0:01:53]} 29. Rg3+ {[%emt 0:05:19]} Kh8 {[%emt 0:00:30]} 30. Ne6 {[%emt 0:00:08]} Qf6 {[%emt 0:01:35]} 31. Nxf8 {[%emt 0:01:08]} Rxf8 {[%emt 0:00:32]} 32. axb6 {[%emt 0:00:30]} axb6 {[%emt 0:00:03]} 33. Rxb6 {[%emt 0:00:42]} Nh6 {[%emt 0:03:08]} 34. h3 {[%emt 0:03:25]} Re8 {[%emt 0:05:35]} 35. Rxd6 {[%emt 0:00:44]} Re1+ {[%emt 0:00:30]} 36. Qxe1 {[%emt 0:00:30]} Qxd6 {[%emt 0:01:39]} 37. Qa1 {[%emt 0:00:56]} 1-0

[Event "World Junior U20 Open 2018"]
[Site "Gebze"]
[Date "2018.09.10"]
[Round "6.41"]
[White "Nikolovski, Nikola"]
[Black "Zlatin, Alexander"]
[Result "1-0"]
[ECO "C50"]
[WhiteElo "2388"]
[BlackElo "2312"]
[Annotator "NA"]
[PlyCount "119"]
[EventDate "2018.09.05"]
[EventType "swiss"]
[EventCountry "TUR"]
[SourceTitle "playchess.com"]
[Source "ChessBase"]
[SourceQuality "1"]
[TimeControl "40/5400+30:1800+30"]

1. e4 {[%emt 0:00:30]} e5 {[%emt 0:00:30]} 2. Nf3 {[%emt 0:00:30]} Nc6 {[%emt 0:00:30]} 3. Bc4 {[%emt 0:01:00]} Bc5 {[%emt 0:00:00]} 4. O-O {[%emt 0:01:30]} Nf6 {[%emt 0:00:30]} 5. d3 {[%emt 0:00:30]} O-O {[%emt 0:04:30]} 6. a4 {[%emt 0:01:30] C50: Hungarian Defence and Giuoco Pianissimo} (6. c3 d5 7. exd5 Nxd5 8. Re1 Bg4 9. Nbd2 Nb6 10. Bb5 Bd6 11. h3 Bh5 12. Ne4 Re8 13. Bg5 f6 14. Be3 a6 15. Bxc6 bxc6 16. Ng3 Bf7 17. c4 Bb4 18. Re2 Bf8 19. b3 c5 {0-1 (89) Nakamura,H (2777)-Grischuk,A (2766) Saint Louis 2018}) 6... d5 {[%emt 0:05:30]} 7. exd5 {[%emt 0:06:30]} Nxd5 {[%emt 0:01:30]} 8. Nbd2 {[%emt 0:04:30] LiveBook: 7 Partien} Bg4 {[%emt 0:03:30]} 9. h3 {[%emt 0:16:30]} Bh5 {[%emt 0:01:30]} 10. Ne4 {[%emt 0:03:30]} Be7 {[%emt 0:01:30]} 11. Ng3 {[%emt 0:07:30]} Bg6 {[%emt 0:02:30]} 12. Re1 {[%emt 0:00:30]} Bf6 {[%emt 0:06:30]} 13. a5 $146 {[%emt 0:02:30]} a6 {[%emt 0:01:30]} 14. Ne4 {[%emt 0:08:30]} Be7 {[%emt 0:00:30]} 15. c3 {[%emt 0:00:30]} Nf6 {[%emt 0:05:30]} 16. Ng3 {[%emt 0:08:30]} Bd6 {[%emt 0:15:30]} (16... e4 $11 {remains equal.} 17. Nh4 (17. Nxe4 Nxe4 18. dxe4 Qxd1 $14) (17. dxe4 Qxd1 18. Rxd1 Nxe4 $14) 17... exd3) 17. Nh4 {[%emt 0:01:30]} Re8 {[%emt 1:03:30]} 18. Nxg6 {[%emt 1:19:00]} hxg6 {[%emt 0:00:30]} 19. Bg5 {[%emt 0:00:30]} Qd7 {[%emt 0:00:30]} 20. Qf3 {[%emt 0:00:30]} Nh7 {[%emt 0:00:30]} 21. Ne4 {[%emt 0:00:30]} Qf5 {[%emt 0:00:30]} 22. Qg3 {[%emt 0:00:30]} Be7 {[%emt 0:06:30]} 23. Bd2 {[%emt 0:04:20]} Nf6 {[%emt 0:03:30]} 24. Ng5 {[%emt 0:00:30]} Nh5 {[%emt 0:00:30]} 25. Qh4 {[%emt 0:03:12]} Bxg5 {[%emt 0:01:30]} 26. Bxg5 {[%emt 0:00:06]} Nf4 {[%emt 0:00:00]} 27. Re4 {[%emt 0:03:47]} Ne6 {[%emt 0:00:00]} 28. Bd2 {[%emt 0:00:48]} Rad8 {[%emt 0:02:30]} 29. b4 {[%emt 0:00:30]} g5 {[%emt 0:01:30]} 30. Qh5 {[%emt 0:04:25]} Nf4 {[%emt 0:09:48]} 31. Bxf4 {[%emt 0:01:25]} exf4 {[%emt 0:00:04]} 32. Rae1 {[%emt 0:00:00]} Rxe4 {[%emt 0:02:32]} 33. Rxe4 {[%emt 0:00:00]} Qf6 {[%emt 0:00:47]} 34. d4 {[%emt 0:00:24]} g6 {[%emt 0:00:30]} 35. Qg4 {[%emt 0:01:57]} Qf5 {[%emt 0:02:08]} 36. Qe2 {[%emt 0:00:52]} Kg7 {[%emt 0:03:44]} 37. d5 {[%emt 0:01:58]} Rxd5 {[%emt 0:02:11]} 38. Bxd5 {[%emt 0:00:30]} Qxd5 {[%emt 0:00:00]} 39. Re8 {[%emt 0:00:31]} Qd6 {[%emt 0:01:44]} 40. Kh1 {[%emt 0:00:00]} Kf6 {[%emt 0:00:00]} 41. Re4 {[%emt 0:11:15]} Kg7 {[%emt 0:05:32]} 42. Kg1 {[%emt 0:01:30]} Qf6 {[%emt 0:04:30]} 43. Qd3 {[%emt 0:02:30]} Qf5 {[%emt 0:00:30]} 44. f3 $18 {[%emt 0:01:16]} Qf6 {[%emt 0:01:30]} 45. Re2 {[%emt 0:02:16]} Kf8 {[%emt 0:00:30]} 46. Kh2 {[%emt 0:01:14]} Kg7 {[%emt 0:00:30]} 47. Re4 {[%emt 0:01:21]} Qf5 {[%emt 0:00:30]} 48. Qc4 {[%emt 0:01:11]} Qf6 {[%emt 0:00:00]} 49. Qc5 {[%emt 0:01:28]} Qd8 {[%emt 0:03:00]} 50. Re2 {[%emt 0:01:40]} Qf8 {[%emt 0:01:30]} 51. Qxg5 {[%emt 0:01:27]} Qd6 {[%emt 0:00:30]} 52. Re4 {[%emt 0:01:39]} f5 {[%emt 0:00:00]} 53. Re8 {[%emt 0:03:06]} Qd7 {[%emt 0:01:00]} 54. Ra8 {[%emt 0:00:47]} Qd2 {[%emt 0:01:30]} 55. Qh4 {[%emt 0:00:17]} Qd6 {[%emt 0:01:30]} 56. Qh8+ {[%emt 0:01:49]} Kf7 {[%emt 0:00:00]} 57. Qg8+ {[%emt 0:01:07]} Ke7 {[%emt 0:00:00]} 58. Qg7+ {[%emt 0:00:49]} Ke6 {[%emt 0:00:30]} 59. Qxg6+ {[%emt 0:00:49]} Kd5 {[%emt 0:00:30]} 60. Qxd6+ {[%emt 0:00:00]} 1-0

[Event "World Junior U20 Open 2018"]
[Site "Gebze"]
[Date "2018.09.10"]
[Round "6.42"]
[White "Macovei, Andrei"]
[Black "Jogstad, Martin"]
[Result "1-0"]
[ECO "C16"]
[WhiteElo "2385"]
[BlackElo "2305"]
[Annotator "NA"]
[PlyCount "121"]
[EventDate "2018.09.05"]
[EventType "swiss"]
[EventCountry "TUR"]
[SourceTitle "playchess.com"]
[Source "ChessBase"]
[SourceQuality "1"]
[TimeControl "40/5400+30:1800+30"]

1. e4 {[%emt 0:00:30]} e6 {[%emt 0:00:30]} 2. d4 {[%emt 0:02:30]} d5 {[%emt 0:00:30]} 3. Nc3 {[%emt 0:00:30]} Bb4 {[%emt 0:00:30]} 4. e5 {[%emt 0:00:30]} b6 {[%emt 0:00:30]} 5. a3 {[%emt 0:05:00]} Bf8 {[%emt 0:01:00]} 6. Nf3 {[%emt 0:04:30]} Ne7 {[%emt 0:01:30]} 7. h4 {[%emt 0:05:30]} Qd7 {[%emt 0:10:30] C16: French: 3 Nc3 Bb4 4 e5: Lines without ...c5} (7... h6 8. Bf4 Ba6 9. Bxa6 Nxa6 10. Qd3 Nb8 11. b4 Nd7 12. O-O c6 13. h5 a6 14. Ne2 c5 15. dxc5 bxc5 {½-½ (46) Kryvoruchko,Y (2708)-Jussupow,A (2583) Switzerland 2017}) 8. h5 {[%emt 0:00:30]} h6 {[%emt 0:00:30]} 9. Nb5 $146 {[%emt 0:00:30]} ({Predecessor:} 9. b4 c6 10. Rb1 Ba6 11. b5 cxb5 12. Nxb5 Bxb5 13. Bxb5 Nec6 14. c4 Be7 15. Rh3 {0-1 (36) Adair,J (2363)-Rombaldoni,A (2494) Sunny Beach 2013}) 9... a6 {[%emt 0:00:30]} 10. Nc3 {[%emt 0:00:30]} c5 {[%emt 0:00:30]} 11. Ne2 {[%emt 0:00:30]} Nbc6 {[%emt 0:09:30]} 12. c3 {[%emt 0:02:30]} c4 {[%emt 0:00:30]} 13. Nh4 {[%emt 0:02:30]} b5 {[%emt 0:15:30]} 14. g4 {[%emt 0:10:30]} a5 {[%emt 0:03:30]} 15. Bh3 {[%emt 0:03:30]} Qb7 {[%emt 0:02:30]} 16. O-O {[%emt 0:01:30]} g6 17. Ng3 Kd8 18. f4 {[%emt 1:10:00]} Kc7 {[%emt 1:23:50]} 19. hxg6 {[%emt 0:00:30]} fxg6 {[%emt 0:00:30]} 20. f5 {[%emt 0:00:30]} gxf5 {[%emt 0:00:30]} 21. gxf5 {[%emt 0:00:30]} exf5 {[%emt 0:00:30]} 22. Nhxf5 {[%emt 0:00:30]} Nxf5 {[%emt 0:00:30]} 23. Nxf5 {[%emt 0:00:30]} Kb6 {[%emt 0:00:30]} 24. Qf3 {[%emt 0:00:30]} Qf7 {[%emt 0:00:30]} 25. Ne3 {[%emt 0:06:30]} Qxf3 {[%emt 0:02:01]} 26. Rxf3 {[%emt 0:00:00]} Ne7 {[%emt 0:00:49]} 27. Rf6+ {[%emt 0:00:00]} Kc7 {[%emt 0:00:02]} 28. Bg2 {[%emt 0:00:00]} Rg8 {[%emt 0:00:39]} 29. Kh2 {[%emt 0:00:00]} Bb7 {[%emt 0:00:30]} 30. Bd2 {[%emt 0:01:30]} Bg7 {[%emt 0:02:25]} 31. Rf7 {[%emt 0:00:30]} Kd8 {[%emt 0:00:30]} 32. Nf5 {[%emt 0:01:30]} Bf8 {[%emt 0:04:47]} 33. Nd6 {[%emt 0:00:30]} Bc6 {[%emt 0:00:17]} 34. Raf1 {[%emt 0:01:30]} Ng6 {[%emt 0:00:13]} 35. Bh3 {[%emt 0:05:00]} Be7 {[%emt 0:01:55]} 36. Bxh6 {[%emt 0:01:28]} Bd7 {[%emt 0:00:46]} 37. Nf5 {[%emt 0:09:12]} Ra6 {[%emt 0:04:11]} 38. Nxe7 {[%emt 0:03:38]} Nxe7 {[%emt 0:00:30]} 39. Rf8+ {[%emt 0:00:30]} Kc7 {[%emt 0:00:30]} 40. Rxg8 {[%emt 0:00:00]} Nxg8 {[%emt 0:00:00]} 41. Rf7 {[%emt 0:02:42]} Rxh6 {[%emt 0:03:35]} 42. Rxd7+ {[%emt 0:00:30]} Kc6 {[%emt 0:00:00]} 43. Rg7 {[%emt 0:00:00]} Rh8 {[%emt 0:00:00]} 44. Kg3 {[%emt 0:00:00]} Nh6 {[%emt 0:00:30]} 45. Bd7+ {[%emt 0:00:30]} Kb6 {[%emt 0:00:30]} 46. Rg6+ {[%emt 0:00:30]} Kc7 {[%emt 0:02:30]} 47. Be6 {[%emt 0:00:30]} Kd8 {[%emt 0:05:30]} 48. Bxd5 {[%emt 0:00:30]} Nf5+ {[%emt 0:00:30]} 49. Kf4 {[%emt 0:00:00]} Ne7 {[%emt 0:00:30]} 50. Rd6+ {[%emt 0:00:00]} Kc7 {[%emt 0:00:30]} 51. Be6 {[%emt 0:03:30]} Ng6+ {[%emt 0:01:30]} 52. Kg5 {[%emt 0:02:30]} Nf8 {[%emt 0:01:30]} 53. Bf5 {[%emt 0:00:00]} Rh2 {[%emt 0:00:30]} 54. Rf6 {[%emt 0:00:00]} Nh7+ {[%emt 0:00:30]} 55. Bxh7 {[%emt 0:00:30]} Rxh7 {[%emt 0:00:30]} 56. d5 {[%emt 0:00:30]} Rh2 {[%emt 0:00:30]} 57. Rf7+ {[%emt 0:00:00]} Kd8 {[%emt 0:00:00]} 58. d6 {[%emt 0:00:00]} Rg2+ {[%emt 0:01:00]} 59. Kf6 {[%emt 0:00:30]} Rxb2 {[%emt 0:00:30]} 60. Ke6 {[%emt 0:00:30]} Rd2 {[%emt 0:00:30]} 61. Rf8# {[%emt 0:03:30]} 1-0

[Event "World Junior U20 Open 2018"]
[Site "Gebze"]
[Date "2018.09.10"]
[Round "6.43"]
[White "Miciano, John Marvin"]
[Black "Vanczak, Tamas"]
[Result "1/2-1/2"]
[ECO "C00"]
[WhiteElo "2374"]
[BlackElo "2276"]
[Annotator "NA"]
[PlyCount "92"]
[EventDate "2018.09.05"]
[EventType "swiss"]
[EventCountry "TUR"]
[SourceTitle "playchess.com"]
[Source "ChessBase"]
[SourceQuality "1"]
[TimeControl "40/5400+30:1800+30"]

1. Nf3 {[%emt 0:00:30]} Nf6 {[%emt 0:00:30]} 2. g3 {[%emt 0:00:30]} b6 {[%emt 0:00:30]} 3. Bg2 {[%emt 0:00:00]} Bb7 {[%emt 0:00:30]} 4. d3 {[%emt 0:01:00]} e6 {[%emt 0:01:30]} 5. O-O {[%emt 0:00:30]} d5 {[%emt 0:02:30]} 6. c3 {[%emt 0:06:30]} c5 {[%emt 0:03:30]} 7. Nbd2 {[%emt 0:00:30]} Nc6 {[%emt 0:00:30]} 8. Re1 {[%emt 0:00:30]} Be7 {[%emt 0:02:30]} 9. e4 {[%emt 0:02:30]} Qc7 {[%emt 0:01:30]} 10. a3 {[%emt 0:03:30]} a5 {[%emt 0:01:30]} 11. a4 {[%emt 0:00:30] C00: French: Unusual White 2nd moves} (11. exd5 Nxd5 12. a4 O-O 13. Nc4 Rfd8 14. Bg5 Ba6 15. Qe2 Rac8 16. Rad1 h6 17. Bc1 Bf6 18. h4 Rd7 {0-1 (35) Ribbegren,K (2222)-Bacrot,E (2714) Brest 2018}) 11... O-O {[%emt 0:00:30]} 12. Nf1 $146 {[%emt 0:00:30]} ({Predecessor:} 12. e5 Nd7 13. Qe2 Rae8 14. Nf1 Qb8 15. Bf4 Bd8 16. h4 Bc7 17. h5 f6 18. d4 cxd4 19. cxd4 Nxd4 20. Nxd4 fxe5 {0-1 (44) Novik,M (2471)-Saveliev,A (2303) St Petersburg 2014}) 12... dxe4 {[%emt 0:12:30]} 13. dxe4 {[%emt 0:00:30]} Rad8 {[%emt 0:00:30]} 14. Qb3 {[%emt 0:00:30]} Ba6 {[%emt 0:02:30]} 15. Bf4 {[%emt 0:03:30]} e5 {[%emt 0:04:30]} 16. Bg5 {[%emt 0:01:30]} c4 {[%emt 0:01:30]} 17. Qc2 {[%emt 0:00:30]} Nd7 {[%emt 0:02:30]} 18. Bxe7 {[%emt 0:01:30]} Nxe7 {[%emt 0:03:30]} 19. Ne3 {[%emt 0:02:30]} Nc5 {[%emt 0:08:30]} 20. Red1 {[%emt 0:10:30]} Nd3 $11 {[%emt 0:09:30]} 21. Ne1 Rd6 22. Nxd3 cxd3 23. Qb3 d2 24. Qc2 Rfd8 {[%emt 1:21:00]} 25. c4 {[%emt 1:39:10]} Rd4 {[%emt 0:00:30]} 26. b3 {[%emt 0:00:30]} Bb7 {[%emt 0:00:30]} 27. Ra2 {[%emt 0:00:30]} Qc5 {[%emt 0:00:30]} 28. Rb2 {[%emt 0:00:30]} f5 {[%emt 0:00:30]} 29. exf5 {[%emt 0:00:30]} Bxg2 {[%emt 0:00:30]} 30. Kxg2 {[%emt 0:00:30]} Qc6+ {[%emt 0:00:30]} 31. Kg1 {[%emt 0:00:30]} Qf3 {[%emt 0:00:30]} 32. Nf1 {[%emt 0:00:30]} Nxf5 {[%emt 0:00:30]} 33. Rxd2 {[%emt 0:00:30]} Ne3 {[%emt 0:00:30]} 34. fxe3 {[%emt 0:00:30]} Rxd2 {[%emt 0:00:30]} 35. Nxd2 {[%emt 0:00:30]} Qxe3+ {[%emt 0:00:30]} 36. Kg2 {[%emt 0:00:30]} Qe2+ {[%emt 0:00:30]} 37. Kg1 {[%emt 0:00:30]} Rf8 {[%emt 0:00:30]} 38. Rb1 {[%emt 0:00:30]} Rf2 {[%emt 0:00:30]} 39. Qe4 {[%emt 0:00:24]} Qxd2 {[%emt 0:00:00]} 40. Rf1 {[%emt 0:00:00]} Rxf1+ {[%emt 0:00:00]} 41. Kxf1 {[%emt 0:02:26]} Qd1+ {[%emt 0:14:30]} 42. Kg2 {[%emt 0:00:30]} Qxb3 {[%emt 0:00:30]} 43. Qxe5 {[%emt 0:00:30]} Qxa4 {[%emt 0:00:30]} 44. Qe6+ {[%emt 0:00:00]} Kf8 {[%emt 0:00:30]} 45. Qxb6 {[%emt 0:00:00]} Qxc4 {[%emt 0:00:00]} 46. Qxa5 {[%emt 0:00:30]} Qe2+ {[%emt 0:00:00]} 1/2-1/2

[Event "World Junior U20 Open 2018"]
[Site "Gebze"]
[Date "2018.09.10"]
[Round "6.44"]
[White "Dobrovoljc, Vid"]
[Black "Nikitenko, Mihail"]
[Result "0-1"]
[ECO "C55"]
[WhiteElo "2316"]
[BlackElo "2368"]
[Annotator "ChessBase"]
[PlyCount "92"]
[EventDate "2018.09.05"]
[EventType "swiss"]
[EventCountry "TUR"]
[SourceTitle "playchess.com"]
[Source "ChessBase"]
[SourceQuality "1"]
[TimeControl "40/5400+30:1800+30"]

1. e4 e5 2. Nf3 Nc6 3. Bb5 a6 4. Ba4 Nf6 5. d3 d6 6. c3 b5 7. Bc2 Be7 8. O-O O-O 9. Re1 Nb8 10. Nbd2 c5 11. Nf1 Nc6 12. Ng3 Re8 13. h3 Bf8 14. Bg5 h6 15. Bd2 Be6 16. Qe2 d5 17. Nh2 d4 18. Ng4 Nxg4 19. hxg4 g6 20. Nf1 Rc8 21. Nh2 c4 22. Rad1 Qd7 23. b3 cxb3 24. Bxb3 Bxb3 25. axb3 dxc3 26. Bxc3 Qe6 27. Qb2 b4 28. Bd2 Nd4 29. Be3 Rc2 30. Qa1 {[%emt 1:25:00]} Nxb3 {[%emt 1:09:00]} 31. Qa4 {[%emt 0:00:30]} Rc3 {[%emt 0:00:30]} 32. Nf3 {[%emt 0:00:30]} Rec8 {[%emt 0:00:30]} 33. Qa2 {[%emt 0:00:30]} a5 {[%emt 0:00:30]} 34. Qa4 {[%emt 0:00:30]} Qe8 {[%emt 0:00:30]} 35. Qxe8 {[%emt 0:00:30]} Rxe8 {[%emt 0:00:30]} 36. g5 {[%emt 0:00:30]} hxg5 {[%emt 0:00:30]} 37. Nxg5 {[%emt 0:00:30]} a4 {[%emt 0:00:30]} 38. Re2 {[%emt 0:00:30]} a3 {[%emt 0:00:30]} 39. Rb1 {[%emt 0:00:30]} Nd4 {[%emt 0:00:30]} 40. Bxd4 {[%emt 0:00:30]} exd4 {[%emt 0:00:30]} 41. e5 {[%emt 0:00:30]} Rec8 {[%emt 0:00:30]} 42. e6 {[%emt 0:01:30]} fxe6 {[%emt 0:00:30]} 43. Nxe6 {[%emt 0:00:00]} Rc1+ {[%emt 0:00:30]} 44. Rxc1 {[%emt 0:00:00]} Rxc1+ {[%emt 0:00:30]} 45. Kh2 {[%emt 0:00:30]} b3 {[%emt 0:00:00]} 46. Nxf8 {[%emt 0:00:00]} Kxf8 {[%emt 0:00:00]} 0-1

[Event "World Junior U20 Open 2018"]
[Site "Gebze"]
[Date "2018.09.10"]
[Round "6.45"]
[White "Milosevic, Milos"]
[Black "Can, Isik"]
[Result "1/2-1/2"]
[ECO "C47"]
[WhiteElo "2292"]
[BlackElo "2361"]
[Annotator "NA"]
[PlyCount "119"]
[EventDate "2018.09.05"]
[EventType "swiss"]
[EventCountry "TUR"]
[SourceTitle "playchess.com"]
[Source "ChessBase"]
[SourceQuality "1"]
[TimeControl "40/5400+30:1800+30"]

1. e4 {[%emt 0:00:30]} e5 {[%emt 0:00:30]} 2. Nc3 {[%emt 0:00:00]} Nf6 {[%emt 0:00:30]} 3. Nf3 {[%emt 0:00:00]} Nc6 {[%emt 0:00:30]} 4. g3 {[%emt 0:00:00]} d5 {[%emt 0:00:30]} 5. exd5 {[%emt 0:00:00]} Nxd5 {[%emt 0:00:30]} 6. Bg2 {[%emt 0:00:30]} Nxc3 {[%emt 0:00:30]} 7. bxc3 {[%emt 0:00:00]} Bc5 {[%emt 0:00:30]} 8. O-O {[%emt 0:00:30]} O-O {[%emt 0:00:00]} 9. Re1 {[%emt 0:00:30]} Bb6 {[%emt 0:03:00] LiveBook: 4 Games} 10. d3 {[%emt 0:01:00]} Re8 {[%emt 0:10:30] C47: Schottisches Vierspringerspiel} 11. Be3 {[%emt 0:02:30]} (11. a4 Bg4 12. h3 Bh5 13. g4 Bg6 14. Nd2 Qh4 15. Qe2 f5 16. Nf3 Qf6 17. gxf5 Bxf5 18. Ng5 {1-0 (60) Mamedyarov,S (2753)-Kramnik,V (2803) Geneve 2013}) 11... Bf5 {[%emt 0:11:30]} 12. Rb1 $146 {[%emt 0:00:30]} ({Vorgänger:} 12. Nd2 Ba5 13. Rb1 Qc8 14. Rb3 Be6 15. Ra3 Bb6 16. Bxb6 axb6 17. Rxa8 Qxa8 18. Bxc6 bxc6 19. Rxe5 Qxa2 {1-0 (43) Seccafim,C (1655)-Parreira,T (1331) Hebraica 2018}) 12... Rb8 {[%emt 0:15:30]} 13. Nd2 {[%emt 0:04:30]} Qd7 {[%emt 0:06:30]} 14. Qc1 {[%emt 0:12:30]} Bh3 {[%emt 0:04:30]} 15. Bh1 {[%emt 0:01:30]} Bxe3 {[%emt 0:14:30]} 16. Rxe3 {[%emt 0:00:30]} f6 {[%emt 0:02:30]} 17. Qa3 {[%emt 0:02:00]} Be6 {[%emt 0:02:30]} 18. Qa4 {[%emt 0:54:00]} Ne7 {[%emt 1:28:42]} (18... Bd5 $11) 19. Qxd7 {[%emt 0:00:30]} Bxd7 {[%emt 0:00:30]} 20. Bxb7 {[%emt 0:36:26]} Ba4 {[%emt 0:01:53]} 21. Ba6 {[%emt 0:00:02]} Rxb1+ {[%emt 0:02:15]} 22. Nxb1 {[%emt 0:00:04]} Bxc2 {[%emt 0:00:00]} 23. Bc4+ {[%emt 0:00:42]} Kf8 {[%emt 0:00:28]} 24. Na3 {[%emt 0:01:20]} Ba4 {[%emt 0:00:34]} 25. Re1 {[%emt 0:00:16]} Nc8 {[%emt 0:05:07]} 26. d4 {[%emt 0:06:11]} exd4 {[%emt 0:00:43]} 27. Rxe8+ {[%emt 0:00:30]} Kxe8 {[%emt 0:00:30]} 28. cxd4 {[%emt 0:00:30]} Ne7 {[%emt 0:00:36]} 29. Kf1 {[%emt 0:01:06]} Nf5 {[%emt 0:00:30]} 30. d5 {[%emt 0:00:48]} Kd7 {[%emt 0:02:33]} 31. Nb1 {[%emt 0:00:52]} Kd6 {[%emt 0:00:50]} 32. Nc3 {[%emt 0:00:24]} Bd7 {[%emt 0:00:12]} 33. Ke2 {[%emt 0:00:39]} Kc5 {[%emt 0:00:16]} 34. Bd3 {[%emt 0:01:25]} Kd4 {[%emt 0:00:42]} 35. Kd2 {[%emt 0:00:48]} h6 {[%emt 0:00:32]} 36. Bxf5 {[%emt 0:00:41]} Bxf5 {[%emt 0:00:30]} 37. Nb5+ {[%emt 0:00:30]} Kxd5 {[%emt 0:00:30]} 38. Nxc7+ {[%emt 0:00:00]} Ke5 {[%emt 0:00:27]} 39. Nb5 {[%emt 0:00:05]} a6 {[%emt 0:00:25]} 40. Nc3 {[%emt 0:00:00]} Kd4 {[%emt 0:00:00]} 41. Ne2+ {[%emt 0:04:41]} Kc4 {[%emt 0:09:45]} 42. Nf4 {[%emt 0:03:30]} Bg4 {[%emt 0:07:53]} 43. Ng2 {[%emt 0:04:30]} (43. h3 $1 $11 Bc8 44. Nh5) 43... Kb4 {[%emt 0:00:42]} 44. Ne3 $17 {[%emt 0:00:30]} Be6 {[%emt 0:00:06]} 45. Nc2+ {[%emt 0:00:30]} Ka4 {[%emt 0:04:25]} 46. Kc3 {[%emt 0:00:30]} g5 {[%emt 0:03:00]} 47. a3 {[%emt 0:01:30]} Bf7 {[%emt 0:01:59]} 48. Kb2 {[%emt 0:00:30]} Kb5 {[%emt 0:00:12]} 49. Kc3 {[%emt 0:00:30]} Kc5 {[%emt 0:00:31]} 50. Ne3 {[%emt 0:02:10]} a5 {[%emt 0:00:46]} 51. Ng4 {[%emt 0:00:54]} f5 {[%emt 0:01:27]} 52. Nxh6 {[%emt 0:00:54]} Be6 {[%emt 0:00:13]} 53. h3 {[%emt 0:03:56]} g4 {[%emt 0:02:09]} 54. hxg4 {[%emt 0:00:30]} fxg4 {[%emt 0:00:00]} 55. a4 {[%emt 0:02:48]} Kd5 {[%emt 0:01:19]} 56. Nxg4 {[%emt 0:01:37]} Bxg4 {[%emt 0:00:03]} 57. Kb2 {[%emt 0:00:50]} Kc4 {[%emt 0:00:01]} 58. f4 {[%emt 0:00:10]} Bf5 {[%emt 0:00:03]} 59. Ka1 {[%emt 0:00:03]} Kc3 {[%emt 0:00:18]} 60. Ka2 {[%emt 0:00:20]} 1/2-1/2